[Event "German Championship Women 2022"]
[Site "Magdeburg"]
[Date "2022.08.16"]
[Round "3.5"]
[White "Muetsch, Annmarie"]
[Black "Perez Celis, Alba"]
[Result "1-0"]
[ECO "D00"]
[WhiteElo "2249"]
[BlackElo "1816"]
[Annotator "TA"]
[PlyCount "69"]
[EventDate "2022.08.14"]
[EventType "swiss"]
[EventCountry "GER"]
[SourceTitle "playchess.com"]
[Source "ChessBase"]
[SourceQuality "1"]
[TimeControl "40/5400+30:1800+30"]

{[%evp 11,69,6,6,8,5,4,12,12,12,14,16,12,8,14,16,25,26,26,26,24,56,16,16,0,0,0,0,0,0,0,114,114,114,115,113,0,152,152,460,477,449,439,382,312,279,0,0,0,527,506,688,669,1134,982,29992,29993,29993,29994,29997,29998]} 1. d4 {[%emt 0:00:14]} d5 {[%emt 0:00:05]} 2. Bg5 {[%emt 0:00:41]} Nf6 {[%emt 0:01:47]} 3. Bxf6 {[%emt 0:01:21]} exf6 {[%emt 0:00:01]} 4. e3 {[%emt 0:01:07]} g6 {[%emt 0:00:47]} 5. g3 {[%emt 0:00:39]} Bg7 {[%emt 0:00:14]} 6. Bg2 {[%emt 0:00:22]} O-O {[%emt 0:00:52]} 7. Ne2 {[%emt 0:01:11] A45: Trompowsky Attack.} c6 {[%emt 0:05:29]} 8. O-O {[%emt 0:01:12]} Bg4 {[%emt 0:04:32]} 9. h3 {[%emt 0:01:32] The position is equal.} Bxe2 {[%emt 0:00:05]} 10. Qxe2 {[%emt 0:00:05]} f5 {[%emt 0:00:01]} 11. c4 {[%emt 0:02:37]} dxc4 {[%emt 0:02:40]} 12. Qxc4 {[%emt 0:00:07]} Nd7 {[%emt 0:00:36][%cal Oc6c5]} 13. Nc3 {[%emt 0:01:00]} Nf6 {[%emt 0:01:29]} 14. b4 {[%emt 0:05:07] [#]} Rc8 $146 {[%emt 0:08:10]} ({Predecessor:} 14... Qe7 15. Rab1 Rac8 16. Rfc1 Rc7 17. Rc2 Rd7 18. b5 cxb5 19. Qxb5 Rc7 20. Qb3 b6 {1-0 (77) Puschmann,L (2295)-Szell,L (2255) Hungary 1996}) 15. Rac1 {[%emt 0:11:41]} Re8 {[%emt 0:22:17]} 16. Rfd1 {[%emt 0:09:25]} h5 {[%emt 0:00:41]} 17. h4 {[%emt 0:05:46]} Ng4 {[%emt 0:03:42]} 18. Bf3 {[%emt 0:06:16]} Bh6 {[%emt 0:11:26][%cal Oh6e3]} 19. Bxg4 {[%emt 0:01:16]} fxg4 {[%emt 0:00:16]} 20. d5 {[%emt 0:14:38]} Rxe3 {[%emt 0:25:28]} 21. fxe3 $16 {[%emt 0:08:07]} Bxe3+ {[%emt 0:00:11]} 22. Kg2 $1 {[%emt 0:02:42]} Bxc1 {[%emt 0:00:02]} 23. d6 {[%emt 0:13:48]} (23. dxc6 $1 $16 Qf6 24. Rf1 (24. Rxc1 Qf3+ 25. Kh2 Qf2+ 26. Kh1 Qxg3 $11) 24... Rxc6 25. Qe2 $1) 23... Bh6 $2 {[%emt 0:04:00] [#]} (23... Bb2 $1 $11) 24. Ne4 $1 {[%emt 0:01:25][%cal Bc3e4,Be4c5,Bc5e6][%mdl 1056] Hoping for Rf1. White has strong compensation. White is much more active.} Bg7 $2 {[%emt 0:00:23]} (24... b5 $16 {is more resistant.} 25. Qc2 Bf8) 25. d7 $18 {[%emt 0:01:18] White wants to mate with Ng5.} Rc7 {[%emt 0:00:44]} 26. Qd3 {[%emt 0:02:31]} Be5 {[%emt 0:01:43] Against Qd6} 27. Qd2 {[%emt 0:01:59] aiming for Qg5.} Kg7 {[%emt 0:00:33] [#]} 28. Qg5 $2 {[%emt 0:01:19]} (28. Nc5 $1 $18) 28... f6 $11 {[%emt 0:00:42]} 29. Nc5 {[%emt 0:03:44] Really sharp!} fxg5 $4 {[%emt 0:05:24][%mdl 8192]} (29... Rxd7 $1 $11 {and Black is okay.} 30. Ne6+ (30. Rxd7+ Qxd7 31. Nxd7 fxg5 $11) 30... Kh7 31. Nf8+ (31. Nxd8 Rxd1 32. Qe3 Rxd8 $15) 31... Kg7 32. Ne6+ (32. Rxd7+ Qxd7 33. Nxd7 fxg5 $11) 32... Kh7 33. Nf8+ (33. Nxd8 Rxd1 34. Qe3 Rxd8 $15) 33... Kg7 34. Rxd7+ Qxd7 35. Nxd7 fxg5 36. Nxe5 Kf6) 30. Ne6+ $18 {[%emt 0:00:05]} Kh7 {[%emt 0:00:29]} 31. Nxd8 {[%emt 0:00:05]} b6 {[%emt 0:00:40]} 32. Ne6 {[%emt 0:00:18]} gxh4 {[%emt 0:00:27]} 33. d8=Q {[%emt 0:00:25] White mates.} h3+ {[%emt 0:00:32]} 34. Kh1 {[%emt 0:00:19]} Bxg3 {[%emt 0:00:24]} 35. Rd7+ {[%emt 0:00:11] Weighted Error Value: White=0.23 (precise) /Black=0.77} 1-0

[Event "German Championship Women 2022"]
[Site "Magdeburg"]
[Date "2022.08.16"]
[Round "3.6"]
[White "Peglau, Dora"]
[Black "Storkebaum, Ulrike"]
[Result "0-1"]
[ECO "E73"]
[WhiteElo "1920"]
[BlackElo "1768"]
[Annotator "TA"]
[PlyCount "96"]
[EventDate "2022.08.14"]
[EventType "swiss"]
[EventCountry "GER"]
[SourceTitle "playchess.com"]
[Source "ChessBase"]
[SourceQuality "1"]
[TimeControl "40/5400+30:1800+30"]

{[%evp 13,96,47,65,57,60,62,65,46,40,15,22,-35,16,-14,-7,-99,-86,-86,-74,-107,-39,-106,-89,-95,-81,-101,-60,-81,-54,-89,-57,-52,-35,-34,-30,-217,-206,-230,-226,-309,-294,-537,-537,-530,-524,-507,-456,-550,-437,-419,-373,-797,-795,-738,-493,-974,-939,-900,-602,-576,-644,-602,0,-779,0,-725,0,-740,-360,-344,-354,-497,-352,-412,-428,-715,-681,-806,-775,-1160,-650,-641,-618,-604,-600]} 1. d4 {[%emt 0:00:03]} Nf6 {[%emt 0:00:07]} 2. c4 {[%emt 0:00:04]} g6 {[%emt 0:00:04]} 3. Nc3 {[%emt 0:00:07]} Bg7 {[%emt 0:00:05]} 4. e4 {[%emt 0:00:05]} d6 {[%emt 0:00:05]} 5. Be2 {[%emt 0:00:07]} O-O {[%emt 0:00:07]} 6. Be3 {[%emt 0:00:04]} e5 {[%emt 0:00:57]} 7. d5 {[%emt 0:00:16]} a5 {[%emt 0:01:15]} 8. h4 {[%emt 0:00:33] E73: King's Indian: Averbakh Variation without 6...c5.} h5 {[%emt 0:05:24]} 9. Nh3 {[%emt 0:01:37]} Na6 {[%emt 0:01:08]} 10. Ng5 {[%emt 0:00:30] White is slightly better.} Bd7 {[%emt 0:03:51] [#]} 11. O-O $146 {[%emt 0:00:52]} ({Predecessor:} 11. f3 Qe7 12. Qd2 Rfc8 13. O-O-O c6 14. Kb1 Nb4 15. dxc6 Rxc6 16. a3 Na6 17. Nb5 {1-0 (35) Valenzuela Gomez,F (2350)-Garcia Ramos,D (2367) Barcelona 2020}) 11... Qe7 {[%emt 0:01:04]} (11... b6 {feels hotter.} 12. Qe1 Ng4 13. Bd2 f6) 12. Qd2 {[%emt 0:06:59]} (12. Qe1 $11) 12... Nc5 {[%emt 0:04:49]} (12... Ng4 $15) 13. Rfd1 {[%emt 0:04:13]} b6 {[%emt 0:00:17][%cal Bb7b6,Bb6c5][%mdl 32]} 14. b3 {[%emt 0:01:27] [#]} (14. f3 $11) 14... Ng4 $1 $17 {[%emt 0:02:58]} 15. Bxc5 {[%emt 0:16:36]} bxc5 {[%emt 0:00:17]} 16. f3 {[%emt 0:13:58]} Nh6 {[%emt 0:01:48]} (16... Nf6 $17) 17. Kh2 {[%emt 0:03:31]} (17. Rab1 $15) 17... f6 {[%emt 0:04:40]} 18. Nh3 {[%emt 0:00:16]} Nf7 {[%emt 0:01:21]} 19. Rf1 {[%emt 0:13:14]} Bh6 {[%emt 0:01:25]} 20. Qe1 {[%emt 0:01:56]} Kh7 {[%emt 0:09:54]} 21. g4 {[%emt 0:02:33]} hxg4 {[%emt 0:06:17]} 22. fxg4 {[%emt 0:01:02]} Be3 {[%emt 0:01:59]} 23. Qg3 {[%emt 0:06:24]} Bd4 {[%emt 0:00:33]} 24. Rf3 $2 {[%emt 0:03:15] White is on the road to losing.} (24. Rab1 $11 {and White stays safe.}) 24... Nh6 $19 {[%emt 0:06:09]} 25. g5 {[%emt 0:03:11]} Ng4+ {[%emt 0:06:38]} 26. Kg2 {[%emt 0:00:25]} f5 {[%emt 0:01:12][%cal Bf6f5,Bf5f4][%mdl 32]} 27. Rc1 $2 {[%emt 0:14:22]} (27. exf5 {was called for.} Bxf5 28. Kh1) 27... f4 {[%emt 0:01:28]} 28. Qe1 {[%emt 0:00:39]} Ne3+ {[%emt 0:01:44]} 29. Kh2 {[%emt 0:00:10]} Kg7 {[%emt 0:03:31] [#] Hoping for ...Rh8.} 30. Nb5 {[%emt 0:02:45]} Bxb5 {[%emt 0:01:13]} 31. cxb5 {[%emt 0:00:02]} a4 {[%emt 0:00:32] aiming for ...axb3.} 32. Bc4 {[%emt 0:00:53]} (32. b4) 32... axb3 {[%emt 0:00:54]} 33. Bxb3 {[%emt 0:00:10]} Ra3 {[%emt 0:03:05] ...Rh8 is the strong threat.} 34. Ng1 {[%emt 0:01:19]} (34. h5 $142) 34... Qd7 {[%emt 0:00:50] And now ...c4 would win.} 35. Qe2 {[%emt 0:01:40]} Rh8 {[%emt 0:01:01]} 36. Rh3 {[%emt 0:00:32]} Ng4+ {[%emt 0:01:56]} 37. Kg2 {[%emt 0:00:09]} Ne3+ $2 {[%emt 0:04:44]} (37... Nf2 $19 38. h5 Nxh3 39. h6+ Kh7 40. Nxh3 Rb8) 38. Kh1 $2 {[%emt 0:00:30][%mdl 8192]} (38. Kh2 $11 Ng4+ 39. Kg2) 38... Ng4 $2 {[%emt 0:03:45]} (38... c4 $19 39. Rxc4 Nxc4 40. Qxc4 f3) 39. Rf1 $2 {[%emt 0:01:01][%mdl 8192]} (39. Kg2 $11 Nf2 40. h5 Nxh3 41. h6+ Kh7 42. Nxh3) 39... Ne3 {[%emt 0:04:35]} 40. Rc1 {[%emt 0:00:36] Prevents c4.} Qg4 {[%emt 0:07:31] Against h5} (40... c4 $142 41. Rxc4 Nxc4 42. Qxc4 f3) 41. Qxg4 {[%emt 0:31:25]} Nxg4 {[%emt 0:30:06]} 42. Kg2 {[%emt 0:00:00]} (42. Nf3 $142) 42... Nf2 {[%emt 0:00:00]} 43. Rh2 {[%emt 0:00:00]} Nxe4 {[%emt 0:00:00]} 44. Ne2 {[%emt 0:00:00]} (44. Nf3 $142) 44... Be3 {[%emt 0:00:00]} 45. Re1 {[%emt 0:00:00]} Nd2 {[%emt 0:00:00]} 46. Nc1 {[%emt 0:00:00]} Nxb3 {[%emt 0:00:00]} 47. axb3 {[%emt 0:00:00]} Bxc1 {[%emt 0:00:00]} 48. Rxc1 {[%emt 0:00:00]} Rxb3 {[%emt 0:00:00] Weighted Error Value: White=1.10/Black=0.86} 0-1

[Event "German Championship Women 2022"]
[Site "Magdeburg"]
[Date "2022.08.16"]
[Round "3.7"]
[White "Wartenberg, Alissa"]
[Black "Just, Anita"]
[Result "1/2-1/2"]
[ECO "C18"]
[WhiteElo "1632"]
[BlackElo "1905"]
[Annotator "TA"]
[PlyCount "72"]
[EventDate "2022.08.14"]
[EventType "swiss"]
[EventCountry "GER"]
[SourceTitle "playchess.com"]
[Source "ChessBase"]
[SourceQuality "1"]
[TimeControl "40/5400+30:1800+30"]

{[%evp 23,72,40,54,52,47,37,40,22,44,-63,0,-148,-16,-2,27,0,0,0,0,0,0,0,-69,-14,104,93,93,68,118,0,0,0,0,0,0,0,0,0,0,0,0,0,0,0,0,0,0,0,0,0,0]} 1. e4 {[%emt 0:00:02]} e6 {[%emt 0:00:06]} 2. d4 {[%emt 0:00:07]} d5 {[%emt 0:00:04]} 3. Nc3 {[%emt 0:00:05]} Bb4 {[%emt 0:00:05]} 4. e5 {[%emt 0:00:05]} c5 {[%emt 0:00:05]} 5. a3 {[%emt 0:00:06]} Bxc3+ {[%emt 0:00:04]} 6. bxc3 {[%emt 0:00:06]} Ne7 {[%emt 0:00:06]} 7. Qg4 {[%emt 0:00:10]} Qc7 {[%emt 0:00:06]} 8. Bd3 {[%emt 0:00:17]} cxd4 {[%emt 0:00:50]} 9. Ne2 {[%emt 0:00:12]} dxc3 {[%emt 0:01:21]} 10. Qxg7 {[%emt 0:01:29]} Rg8 {[%emt 0:00:23]} 11. Qxh7 {[%emt 0:00:09]} Nbc6 {[%emt 0:01:17]} 12. Bf4 {[%emt 0:03:13]} Bd7 {[%emt 0:01:51]} 13. Qh5 {[%emt 0:21:01] C18: French: 3 Nc3 Bb4: Main line: 7 h4 and 7 Qg4.} O-O-O {[%emt 0:06:29]} 14. Bg3 {[%emt 0:11:48]} Ng6 {[%emt 0:18:28][%cal Rg6e5] [#]} 15. Bxg6 $146 {[%emt 0:03:20] White is slightly better.} ({Predecessor:} 15. f4 Rh8 16. Qf3 Rdg8 17. Bxg6 Rxg6 18. Qxc3 Ne7 19. Qxc7+ Kxc7 20. c3 Nf5 21. Kf2 {½-½ (49) Dolzhikova,O (2185)-Schaaf,R Bad Zwesten 1998}) 15... Rxg6 {[%emt 0:00:48]} 16. Nf4 {[%emt 0:04:18]} (16. O-O $14) 16... Rxg3 {[%emt 0:11:58]} 17. fxg3 {[%emt 0:04:51]} (17. hxg3 $11 {was the only way to keep the balance.} Nd4 18. O-O) 17... Nxe5 {[%emt 0:03:34]} (17... Nd4 $1 $17 {[%cal Rd4c2]} 18. O-O Ba4) 18. O-O $1 $11 {[%emt 0:02:46]} Bc6 {[%emt 0:01:20]} 19. Rae1 $36 {[%emt 0:03:14][%mdl 2048] White is more active.} Nc4 {[%emt 0:02:52]} 20. Nd3 {[%emt 0:11:44]} Nxa3 {[%emt 0:09:40]} 21. Kh1 {[%emt 0:09:16]} Nxc2 {[%emt 0:09:03]} ({Black should try} 21... Be8 $11 22. Ra1 Nb5) 22. Rc1 $1 $15 {[%emt 0:02:40]} Ne3 {[%emt 0:02:34]} 23. Rxf7 {[%emt 0:01:47]} Qd6 {[%emt 0:03:46]} (23... Bd7 $11 {keeps the balance.}) 24. Rxc3 $16 {[%emt 0:15:11]} d4 {[%emt 0:01:50][%csl LRc3,LRg2][%cal Bd5d4,Bd4d3][%mdl 32] [#]} 25. Rc1 {[%emt 0:00:13]} Kb8 {[%emt 0:10:31] [#]} ({Black should play} 25... Qd5 $1 $14 26. Qxd5 Rxd5) 26. Qe5 {[%emt 0:03:12] Dancing on a razor blade.} (26. Qa5 $1 $16 {[%cal Oc1c6] Rxc6! would kill now.} Bd5 27. Nc5 (27. Ra1 a6 $14)) 26... Qxe5 $11 {[%emt 0:05:48] The position is equal.} 27. Nxe5 {[%emt 0:00:06]} d3 $1 {[%emt 0:00:18]} 28. Nxc6+ {[%emt 0:00:50]} bxc6 {[%emt 0:02:34][%mdl 4096] Endgame KRR-KRN} 29. Rb1+ {[%emt 0:00:39]} Kc8 {[%emt 0:05:05] White must now prevent ...d2.} 30. Rbb7 {[%emt 0:00:49][%csl Gb7][%cal Rf7c7]} ({Not} 30. Rxa7 $2 d2 31. Kg1 (31. Ra8+ $2 Kd7 $19) 31... d1=Q+ $19) 30... Nd5 {[%emt 0:00:28] Prevents Rfc7+.} 31. Rxa7 {[%emt 0:00:37][%cal Ra7a8]} Kb8 {[%emt 0:00:34] Inhibits Ra8+.} 32. Rab7+ {[%emt 0:00:09]} Kc8 {[%emt 0:00:44]} 33. Ra7 $1 {[%emt 0:00:06][%cal Ra7a8]} Kb8 {[%emt 0:00:19] Against Ra8+} 34. Rab7+ {[%emt 0:00:07]} Kc8 {[%emt 0:00:03] And now ...d2 would win.} 35. Ra7 {[%emt 0:00:06][%cal Ra7a8]} Kb8 {[%emt 0:00:08] Against Ra8+. ...d2 is the strong threat.} 36. Rab7+ {[%emt 0:00:32]} Kc8 {[%emt 0:00:08] Weighted Error Value: White=0.20 (precise) /Black=0.18 (very precise)} 1/2-1/2

[Event "German Championship Women 2022"]
[Site "Magdeburg"]
[Date "2022.08.16"]
[Round "3.8"]
[White "Mekus, Manuela"]
[Black "Basovskiy, Jana"]
[Result "0-1"]
[ECO "A04"]
[WhiteElo "1638"]
[BlackElo "1867"]
[Annotator "NA RC"]
[PlyCount "62"]
[EventDate "2022.08.14"]
[EventType "swiss"]
[EventCountry "GER"]
[SourceTitle "playchess.com"]
[Source "ChessBase"]
[SourceQuality "1"]
[TimeControl "40/5400+30:1800+30"]

1. d3 {[%emt 0:00:09]} c5 {[%emt 0:00:16]} 2. c3 {[%emt 0:00:13]} Nc6 {[%emt 0:00:16]} 3. g3 {[%emt 0:00:07]} e6 {[%emt 0:00:14]} 4. Bg2 {[%emt 0:00:10]} g6 {[%emt 0:01:12]} 5. Nd2 {[%emt 0:00:13]} Bg7 {[%emt 0:00:13]} 6. Ngf3 {[%emt 0:00:07]} Nge7 {[%emt 0:00:10]} 7. e4 {[%emt 0:00:21]} d6 {[%emt 0:01:05]} 8. O-O {[%emt 0:00:23]} O-O {[%emt 0:00:05]} 9. Re1 {[%emt 0:08:00]} b5 {[%emt 0:00:48]} 10. a3 {[%emt 0:04:00]} Rb8 {[%emt 0:06:26]} 11. Rb1 $15 {[%emt 0:09:03]} a5 {[%emt 0:00:44]} 12. a4 {[%emt 0:10:45]} b4 {[%emt 0:12:29]} 13. c4 f5 {[%emt 0:19:08]} 14. Nb3 {[%emt 0:06:07]} e5 {[%emt 0:08:20]} 15. exf5 {[%emt 0:02:59]} Bxf5 {[%emt 0:10:40]} 16. Nh4 {[%emt 0:04:44]} Bd7 {[%emt 0:00:10]} 17. f4 {[%emt 0:10:59]} exf4 {[%emt 0:10:37]} 18. Bxf4 {[%emt 0:00:39]} Ne5 {[%emt 0:04:40]} 19. Nxc5 {[%emt 0:05:31]} Bg4 {[%emt 0:06:29]} 20. Qc2 {[%emt 0:02:16]} dxc5 {[%emt 0:00:44]} 21. Bxe5 {[%emt 0:00:43]} Bxe5 {[%emt 0:00:06]} 22. Bd5+ {[%emt 0:01:35]} Nxd5 {[%emt 0:00:26]} 23. Rxe5 {[%emt 0:00:03]} Nf6 {[%emt 0:06:02]} 24. Kg2 {[%emt 0:04:43]} Qd7 {[%emt 0:02:15]} 25. Rxc5 {[%emt 0:03:29]} Bh3+ {[%emt 0:00:36]} 26. Kh1 {[%emt 0:00:01]} Ng4 {[%emt 0:05:27]} 27. Rd5 {[%emt 0:01:53]} Qe7 {[%emt 0:01:56]} 28. Qd2 {[%emt 0:02:23]} Rf2 {[%emt 0:00:32]} 29. Qe1 {[%emt 0:06:12]} Rf1+ {[%emt 0:01:42]} 30. Qxf1 {[%emt 0:00:12]} Bxf1 {[%emt 0:00:01]} 31. Rxf1 {[%emt 0:00:01]} Qe2 {[%emt 0:00:22]} 0-1

[Event "German Championship Women 2022"]
[Site "Magdeburg"]
[Date "2022.08.16"]
[Round "3.10"]
[White "Bluebaum, Johanna"]
[Black "Petersen, Sophie"]
[Result "1-0"]
[ECO "D31"]
[WhiteElo "2013"]
[BlackElo "1597"]
[Annotator "TA"]
[PlyCount "97"]
[EventDate "2022.08.14"]
[EventType "swiss"]
[EventCountry "GER"]
[SourceTitle "playchess.com"]
[Source "ChessBase"]
[SourceQuality "1"]
[TimeControl "40/5400+30:1800+30"]

{[%evp 9,97,21,18,18,20,20,22,20,18,11,23,12,13,15,43,26,66,66,78,43,41,37,152,156,191,176,192,184,242,209,215,200,232,231,237,237,238,209,247,247,286,277,272,264,270,256,271,263,276,276,276,264,276,269,276,0,277,273,290,287,293,293,278,270,349,308,345,345,455,325,323,269,305,280,340,349,329,328,332,322,330,321,317,317,333,324,302,272,558,568]} 1. d4 {[%emt 0:00:01]} d5 {[%emt 0:00:07]} 2. c4 {[%emt 0:00:37]} e6 {[%emt 0:00:09]} 3. Nc3 {[%emt 0:00:07]} a6 {[%emt 0:00:07]} 4. cxd5 {[%emt 0:05:07]} exd5 {[%emt 0:00:07]} 5. Bf4 {[%emt 0:00:34]} Nf6 {[%emt 0:00:21]} 6. e3 {[%emt 0:00:24] D31: Queen's Gambit Declined: Semi-Slav without ...Nf6 (+ Marshall Gambit and Noteboom) and Exchange Variation lines without ...Nf6.} Bd6 {[%emt 0:00:30]} 7. Bxd6 {[%emt 0:02:09]} Qxd6 {[%emt 0:00:08]} 8. Bd3 {[%emt 0:00:36] The position is equal.} O-O {[%emt 0:01:43]} 9. Nge2 {[%emt 0:02:54]} Re8 {[%emt 0:03:58]} 10. Qc2 {[%emt 0:03:21]} Nc6 {[%emt 0:04:56]} 11. a3 {[%emt 0:02:03] [#]} b5 $146 {[%emt 0:04:12]} ({Predecessor:} 11... Bg4 12. O-O Bh5 13. Rac1 Bg6 14. Bxg6 hxg6 15. Na4 Re7 16. Nc5 Nd8 17. h4 c6 {½-½ (27) Tregubov,P (2592)-Nisipeanu,L (2674) Germany 2018}) 12. b4 {[%emt 0:17:04]} Bb7 {[%emt 0:07:58]} 13. O-O {[%emt 0:05:50]} g6 {[%emt 0:03:35]} 14. Ng3 {[%emt 0:10:43]} Nd7 {[%emt 0:04:41]} 15. Bxb5 {[%emt 0:11:09]} Nb6 {[%emt 0:14:08]} (15... axb5 $14 16. Nxb5 Nxd4 17. Nxd4 (17. exd4 Qb6 $14) 17... c5) 16. Bd3 $16 {[%emt 0:00:47]} Kg7 17. Rac1 {[%emt 0:01:59]} h5 {[%emt 0:19:35]} 18. Nge2 {[%emt 0:08:25]} Rad8 {[%emt 0:04:12]} (18... Ne7 $142 19. Nf4 c6) 19. Na4 {[%emt 0:02:32]} Nxa4 {[%emt 0:05:33]} 20. Qxa4 {[%emt 0:00:14]} Nb8 {[%emt 0:01:32]} 21. Rc3 {[%emt 0:03:09]} c6 {[%emt 0:03:19]} 22. Nc1 {[%emt 0:01:03]} Nd7 {[%emt 0:01:54]} 23. Qd1 {[%emt 0:01:59]} ({Avoid the trap} 23. Bxa6 $2 Ra8 24. Nd3 (24. b5 $2 cxb5 25. Qb4 Qxa6 $19) 24... Rxa6 $19) 23... Ra8 {[%emt 0:01:16]} 24. Nb3 {[%emt 0:00:10]} Qe7 {[%emt 0:02:01]} 25. Na5 {[%emt 0:00:16][%csl LRb7,LRc6]} Nb8 {[%emt 0:01:45]} 26. Qf3 {[%emt 0:03:00]} Ra7 {[%emt 0:02:44]} 27. Rfc1 {[%emt 0:00:52]} Qd7 {[%emt 0:01:19]} 28. Qg3 {[%emt 0:01:10]} Ba8 {[%emt 0:00:48]} 29. Be2 {[%emt 0:00:46]} Kh7 {[%emt 0:00:23]} 30. Bf3 {[%emt 0:03:38]} Qe6 {[%emt 0:03:23]} 31. Nb3 {[%emt 0:02:09]} Nd7 {[%emt 0:00:37]} 32. Na5 {[%emt 0:01:19]} Nb8 $1 {[%emt 0:00:19]} 33. Bd1 {[%emt 0:00:16][%cal Bf3d1,Bd1a4,Ba4c2,Bc2d3,Bd3e2][%mdl 32]} Qd7 {[%emt 0:00:27]} 34. Ba4 {[%emt 0:00:25]} Rc8 {[%emt 0:01:13]} 35. h3 {[%emt 0:01:42]} Qe6 {[%emt 0:00:28]} 36. Qf4 {[%emt 0:01:13]} f6 {[%emt 0:02:01]} 37. g4 {[%emt 0:00:47]} Rg7 {[%emt 0:02:07]} 38. Bc2 {[%emt 0:01:14] [#] aiming for gxh5.} Kg8 {[%emt 0:00:38]} 39. Kg2 {[%emt 0:01:57]} f5 {[%emt 0:00:46]} 40. g5 {[%emt 0:02:44]} Re7 {[%emt 0:00:58]} 41. Bd3 {[%emt 0:30:46]} Rec7 {[%emt 0:31:27]} 42. Nb3 {[%emt 0:03:34][%cal Ba5b3,Bb3c5,Bc5d3,Bd3f4,Bf4d5][%mdl 32]} Qe8 {[%emt 0:02:34]} 43. Nc5 {[%emt 0:00:27]} Ra7 {[%emt 0:00:48]} 44. Qd6 {[%emt 0:00:00]} Kh7 {[%emt 0:00:00]} 45. Be2 {[%emt 0:00:00]} Rd8 {[%emt 0:00:00]} 46. Qg3 {[%emt 0:00:00]} Rc8 {[%emt 0:00:00]} 47. Nd3 {[%emt 0:00:00]} Nd7 {[%emt 0:00:00]} 48. Nf4 {[%emt 0:00:00]} Nb8 $2 {[%emt 0:00:00] [#]} (48... Nb6 {is a better defense.} 49. Rc5 Bb7) 49. Nxd5 $1 {[%emt 0:00:00][%mdl 512] Weighted Error Value: White=0.18 (very precise) /Black=0.25 (precise)} 1-0

[Event "German Championship Women 2022"]
[Site "Magdeburg"]
[Date "2022.08.16"]
[Round "3.11"]
[White "Voigt, Anastasia"]
[Black "Spiel, Marianne"]
[Result "1-0"]
[ECO "C06"]
[WhiteElo "1694"]
[BlackElo "1893"]
[Annotator "NA RC"]
[PlyCount "103"]
[EventDate "2022.08.14"]
[EventType "swiss"]
[EventCountry "GER"]
[SourceTitle "playchess.com"]
[Source "ChessBase"]
[SourceQuality "1"]
[TimeControl "40/5400+30:1800+30"]

1. e4 {[%emt 0:00:01]} e6 {[%emt 0:00:07]} 2. d4 {[%emt 0:00:04]} d5 {[%emt 0:00:04]} 3. Nd2 {[%emt 0:00:05]} Nf6 {[%emt 0:00:18]} 4. e5 {[%emt 0:00:06]} Nfd7 {[%emt 0:00:07]} 5. Bd3 {[%emt 0:00:10]} c5 {[%emt 0:00:13]} 6. c3 {[%emt 0:00:04]} Nc6 {[%emt 0:00:21]} 7. Ne2 {[%emt 0:00:12]} cxd4 {[%emt 0:00:29]} 8. cxd4 {[%emt 0:00:06]} f6 {[%emt 0:00:12]} 9. exf6 {[%emt 0:00:07]} Nxf6 {[%emt 0:00:07]} 10. O-O {[%emt 0:00:18]} Bd6 {[%emt 0:00:25]} 11. Nf3 {[%emt 0:00:06]} O-O {[%emt 0:00:19]} 12. Bf4 {[%emt 0:00:06]} Ng4 {[%emt 0:24:03]} 13. Bg3 {[%emt 0:01:05]} e5 {[%emt 0:11:41]} 14. Qb3 {[%emt 0:00:38]} Be6 {[%emt 0:07:33]} 15. dxe5 {[%emt 0:03:22]} Ncxe5 {[%emt 0:05:47]} 16. Nxe5 {[%emt 0:01:24]} Bxe5 {[%emt 0:04:44]} 17. h3 {[%emt 0:35:06]} Bxg3 {[%emt 0:04:36]} 18. Nxg3 {[%emt 0:00:09]} Ne5 {[%emt 0:04:09]} 19. Bc2 $11 {[%emt 0:03:51]} Qf6 {[%emt 0:06:48]} 20. Qb4 {[%emt 0:08:42]} Rac8 {[%emt 0:06:28]} 21. Bb3 {[%emt 0:04:16]} b6 {[%emt 0:07:23]} 22. Qd2 {[%emt 0:07:04]} Nc4 {[%emt 0:02:43]} 23. Bxc4 {[%emt 0:04:07]} dxc4 {[%emt 0:00:07]} 24. Rad1 {[%emt 0:01:12]} Rcd8 {[%emt 0:00:26]} 25. Qe2 {[%emt 0:00:48]} b5 {[%emt 0:01:37]} 26. Ne4 {[%emt 0:02:01]} Qg6 {[%emt 0:00:23]} 27. Ng3 {[%emt 0:07:44]} a6 {[%emt 0:00:38]} 28. Rfe1 {[%emt 0:01:26]} Bd5 {[%emt 0:02:27]} 29. Qe5 {[%emt 0:05:48]} Qf7 {[%emt 0:03:33]} 30. Re2 {[%emt 0:04:54]} Rfe8 {[%emt 0:01:58]} 31. Rxd5 {[%emt 0:01:47]} Rxd5 {[%emt 0:02:32]} 32. Qxe8+ {[%emt 0:00:14]} Qxe8 {[%emt 0:00:05]} 33. Rxe8+ {[%emt 0:00:05]} Kf7 {[%emt 0:00:03]} 34. Re2 {[%emt 0:00:47]} Rd1+ {[%emt 0:01:15]} 35. Kh2 {[%emt 0:00:37]} Rd3 {[%emt 0:01:36]} 36. Ne4 {[%emt 0:00:32]} b4 {[%emt 0:00:59]} 37. Nc5 {[%emt 0:01:15]} Rd6 {[%emt 0:00:48]} 38. Rc2 {[%emt 0:00:45]} a5 {[%emt 0:00:41]} 39. Rxc4 {[%emt 0:00:46]} Rd2 {[%emt 0:00:35]} 40. Rf4+ {[%emt 0:01:32]} Ke7 {[%emt 0:00:55]} 41. Na4 {[%emt 0:30:52]} g6 {[%emt 0:03:28]} 42. a3 {[%emt 0:00:00]} bxa3 {[%emt 0:07:19]} 43. bxa3 {[%emt 0:00:00]} Rd3 {[%emt 0:00:42]} 44. Rf3 {[%emt 0:00:00]} Rxf3 {[%emt 0:01:10]} 45. gxf3 {[%emt 0:00:00]} Kd6 {[%emt 0:00:08]} 46. Nb2 {[%emt 0:00:00]} Kd5 {[%emt 0:01:44]} 47. Kg3 {[%emt 0:00:00]} Kd4 {[%emt 0:00:56]} 48. Kg4 {[%emt 0:00:00]} Kc3 {[%emt 0:01:00]} 49. Na4+ {[%emt 0:00:00]} Kb3 {[%emt 0:00:15]} 50. Nb6 {[%emt 0:00:00]} Kxa3 {[%emt 0:00:08]} 51. Nc4+ {[%emt 0:00:00]} Kb4 {[%emt 0:00:10]} 52. Nxa5 {[%emt 0:00:00]} 1-0